bitfinex-derivatives/quotes_SOLF0:USTF0_20250411
["timestamp","ask_amount","ask_price","bid_price","bid_amount"]
[1744355190545,0.06169308,116.48,116.46,8.5921]
[1744355191545,0.06169308,116.48,116.45,4.6284279]
[1744355192336,8.5922,116.47,116.45,4.6284279]
[1744355193656,0.06169308,116.48,116.45,0.0581279]
[1744355194247,8.5924,116.46,116.45,0.0581279]
[1744355195346,8.5921,116.47,116.45,0.0581279]
[1744355195548,32.98,116.47,116.45,0.0581279]
[1744355195849,41.5717,116.47,116.45,0.0581279]
[1744355196237,32.98,116.47,116.45,0.0581279]
[1744355196442,8.5924,116.46,116.45,0.0581279]
[1744355196754,32.98,116.47,116.45,0.0581279]
[1744355197838,41.5722,116.47,116.45,0.0581279]
[1744355198346,8.5924,116.46,116.45,0.0581279]
[1744355199855,41.572,116.47,116.45,0.0581279]
[1744355200051,0.06169308,116.48,116.45,0.0581279]
[1744355200751,8.5921,116.47,116.45,0.0581279]
[1744355201049,32.98,116.47,116.45,0.0581279]
[1744355201254,8.5924,116.46,116.45,0.0581279]
[1744355202956,8.5924,116.46,116.45,2.79e-05]
[1744355207859,41.572,116.47,116.45,2.79e-05]
[1744355208059,32.98,116.47,116.45,2.79e-05]
[1744355208465,8.5924,116.46,116.45,2.79e-05]
[1744355214767,41.5721,116.47,116.45,2.79e-05]
[1744355215465,8.5924,116.46,116.45,2.79e-05]
[1744355216058,41.5721,116.47,116.45,2.79e-05]
[1744355216667,8.5924,116.46,116.45,2.79e-05]
[1744355216876,22.94127916,116.46,116.45,2.79e-05]
[1744355219266,14.34887916,116.46,116.4,2.2764]
[1744355219467,14.34887916,116.44,116.41,8.44975094]
[1744355219774,32.98,116.44,116.42,8.44975094]
[1744355219962,32.98,116.44,116.43,8.44975094]
[1744355220866,32.98,116.44,116.43,8.45741831]
[1744355221074,41.5739,116.44,116.43,8.45741831]
[1744355221271,47.32887916,116.44,116.42,0.02501542]
[1744355221775,47.32887916,116.44,116.42,1.542e-05]
[1744355221968,8.5946,116.43,116.42,1.542e-05]
[1744355223870,41.5741,116.44,116.42,1.542e-05]
[1744355224069,8.5941,116.44,116.42,1.542e-05]
[1744355224268,694.80830129,116.45,116.42,1.542e-05]
[1744355224469,42.5543,116.44,116.42,1.542e-05]
[1744355224875,33.96,116.44,116.42,1.542e-05]
[1744355225568,17.61942213,116.45,116.42,14.34889458]
[1744355225769,17.61942213,116.45,116.43,8.44718157]
[1744355225972,26.21292213,116.45,116.42,22.94389458]
[1744355226173,26.21292213,116.45,116.43,8.44683941]
[1744355226373,26.21292213,116.45,116.42,22.94389458]
[1744355226675,44.51292213,116.45,116.43,8.44675038]
[1744355226878,35.91942213,116.45,116.42,14.34889458]
[1744355227072,35.91942213,116.45,116.43,12.81921114]
[1744355227374,35.91942213,116.45,116.44,17.04021114]
[1744355227973,35.91942213,116.45,116.44,8.44631114]
[1744355228181,35.91942213,116.45,116.43,4.3729]
[1744355228380,69.87942213,116.45,116.42,1.542e-05]
[1744355228878,14.34887916,116.44,116.42,1.542e-05]
[1744355229380,8.5946,116.43,116.42,1.542e-05]
[1744355230278,8.594,116.44,116.42,1.542e-05]
[1744355231476,88.83302213,116.45,116.43,8.44816108]
[1744355231677,88.83302213,116.45,116.42,8.59541542]
[1744355231877,80.23942213,116.45,116.43,17.04275025]
[1744355232171,80.23942213,116.45,116.43,8.5946]
[1744355232373,80.23942213,116.45,116.42,1.542e-05]
[1744355232572,88.83302213,116.45,116.43,8.4498772]
[1744355232784,88.83302213,116.45,116.42,8.59511542]
[1744355232983,88.83302213,116.45,116.43,8.4498795]
[1744355233283,88.83302213,116.45,116.42,8.59511542]
[1744355233686,88.83302213,116.45,116.43,8.4506087]
[1744355233982,88.83302213,116.45,116.43,8.5945]
[1744355235182,46.27942213,116.45,116.44,8.5939]
[1744355235387,46.27942213,116.45,116.44,17.04554217]
[1744355235685,46.27942213,116.45,116.44,17.04522451]
[1744355236182,46.27942213,116.45,116.44,8.45132451]
[1744355236893,54.87262213,116.45,116.44,8.45132451]
[1744355237589,54.87262213,116.45,116.43,4.4131]
[1744355238490,54.87262213,116.45,116.44,8.45519265]
[1744355239188,54.87262213,116.45,116.44,8.45547293]
[1744355239693,54.87262213,116.45,116.43,4.4131]
[1744355240591,54.87262213,116.45,116.43,13.0077]
[1744355240994,54.87262213,116.45,116.43,4.4131]
[1744355242895,8.5939,116.44,116.42,1.542e-05]
[1744355243087,42.5539,116.44,116.43,8.45735283]
[1744355243594,33.96,116.44,116.43,8.45735283]
[1744355243797,36.57302213,116.45,116.43,8.45735283]
[1744355243990,36.57302213,116.45,116.42,8.59541542]
[1744355244191,36.57302213,116.45,116.43,8.45787873]
[1744355244391,36.57302213,116.45,116.42,8.59541542]
[1744355244693,36.57302213,116.45,116.43,8.45841072]
[1744355244994,27.97942213,116.45,116.42,1.542e-05]
[1744355245182,27.97942213,116.45,116.43,8.45900976]
[1744355245387,27.97942213,116.45,116.42,1.542e-05]
[1744355245595,36.57292213,116.45,116.43,8.45954373]
[1744355245793,36.57292213,116.45,116.42,8.59491542]
[1744355246099,36.57292213,116.45,116.43,8.45953226]
[1744355246286,36.57292213,116.45,116.43,8.5946]
[1744355246490,27.97942213,116.45,116.43,8.5946]
[1744355246794,27.97942213,116.45,116.44,8.45971213]
[1744355247192,36.57262213,116.45,116.44,8.45971213]
[1744355247493,17.61942213,116.45,116.44,8.45971213]
[1744355247686,51.99,116.46,116.44,17.05361213]
[1744355247892,51.99,116.46,116.45,8.45971213]
[1744355248390,51.99,116.46,116.45,17.05291213]
[1744355250094,48.5131,116.46,116.45,31.40179129]
[1744355250698,680.48,116.53,116.5,8.5892]
[1744355250997,33.96,116.54,116.5,8.5892]
[1744355251203,42.5469,116.54,116.5,8.5892]
[1744355251395,10.36,116.53,116.5,22.93807916]
[1744355251596,10.36,116.53,116.51,8.44558589]
[1744355251793,10.36,116.53,116.52,8.44558589]
[1744355251998,10.41862405,116.53,116.52,22.79446505]
[1744355252702,10.41862405,116.53,116.52,31.38246505]
[1744355253999,10.41862405,116.53,116.51,0.0562873]
[1744355254000,44.69862405,116.53,116.51,0.0562873]
[1744355254901,10.41862405,116.53,116.51,0.0562873]
[1744355255107,10.41862405,116.53,116.52,22.77022441]
[1744355255606,10.41862405,116.53,116.52,22.93687916]
[1744355256006,10.41862405,116.53,116.51,8.6446873]
[1744355257302,8.588,116.52,116.51,0.0562873]
[1744355258208,53.28602405,116.53,116.51,0.0562873]
[1744355258403,44.69862405,116.53,116.51,0.0562873]
[1744355258805,44.69862405,116.53,116.51,22.99336646]
[1744355259110,10.41862405,116.53,116.51,0.0562873]
[1744355259404,19.00632405,116.53,116.51,0.0562873]
[1744355261109,10.41862405,116.53,116.51,0.0562873]
[1744355261408,10.41862405,116.53,116.51,8.6449873]
[1744355261609,10.41862405,116.53,116.51,0.0562873]
[1744355263009,19.00602405,116.53,116.51,0.0562873]
[1744355263309,10.41862405,116.53,116.51,0.0562873]
[1744355263713,8.588,116.52,116.51,0.0562873]
[1744355264008,10.41862405,116.53,116.51,0.0562873]
[1744355264511,19.00632405,116.53,116.51,0.0562873]
[1744355266315,10.41862405,116.53,116.51,8.6448873]
[1744355266708,10.41862405,116.53,116.51,0.0562873]
[1744355266912,19.00592405,116.53,116.51,0.0562873]
[1744355267107,10.41862405,116.53,116.51,14.40516646]
[1744355267505,10.41862405,116.53,116.52,8.588]
[1744355268617,0.05862405,116.53,116.52,8.588]
[1744355272716,10.36,116.55,116.52,8.38449222]
[1744355272919,20.03,116.57,116.54,14.34887916]
[1744355273416,13.54,116.59,116.54,14.34887916]
[1744355273812,34.32366985,116.58,116.55,0.06293177]
[1744355274923,42.90776985,116.58,116.55,8.64853177]
[1744355275123,42.90776985,116.58,116.55,0.06293177]
[1744355275124,48.67254901,116.58,116.55,0.06293177]
[1744355275326,4.3996,116.57,116.55,0.06293177]
[1744355275521,8.5851,116.56,116.55,0.06293177]
[1744355275727,4.3996,116.57,116.55,0.06293177]
[1744355275919,12.9846,116.57,116.55,0.06293177]
[1744355276120,4.3996,116.57,116.55,0.06293177]
[1744355277527,8.5851,116.56,116.55,0.06293177]
[1744355278729,12.9842,116.57,116.55,0.06293177]
[1744355279828,8.5851,116.56,116.55,0.06293177]
[1744355281032,4.3996,116.57,116.55,0.06293177]
[1744355281726,14.34887916,116.56,116.52,1.71644352]
[1744355281933,14.34887916,116.54,116.45,126.86056064]
[1744355282132,14.34887916,116.5,116.47,11.94305247]
[1744355282334,48.60887916,116.5,116.47,11.94305247]
[1744355282831,2.2316,116.49,116.47,12.00303935]
[1744355283030,34.31430591,116.5,116.47,26.35191851]
[1744355283423,42.90380591,116.5,116.47,34.94321851]
[1744355284334,34.31430591,116.5,116.48,8.5906]
[1744355284829,0.05430591,116.5,116.48,8.5906]
[1744355285032,0.05430591,116.5,116.49,22.93907916]
[1744355285433,14.55,116.53,116.49,14.34887916]
[1744355285638,14.55,116.53,116.52,14.34887916]
[1744355286031,14.55,116.53,116.52,22.93687916]
[1744355287136,14.55,116.53,116.52,31.33597256]
[1744355287438,0.05733384,116.54,116.53,8.5873]
[1744355287639,34.02,116.57,116.53,8.39845156]
[1744355287938,34.02,116.6,116.55,14.34887916]
[1744355288332,34.02,116.6,116.57,8.5843]
[1744355288727,34.02,116.6,116.57,8.64423144]
[1744355288935,34.08366877,116.6,116.57,8.64423144]
[1744355289843,42.66596877,116.6,116.57,8.64423144]
[1744355290036,34.08366877,116.6,116.57,0.05993144]
[1744355290241,8.5836,116.58,116.57,0.05993144]
[1744355290435,48.43254793,116.6,116.53,14.34887916]
[1744355290635,48.36887916,116.6,116.54,16.99342324]
[1744355290831,48.36887916,116.6,116.54,8.5859]
[1744355291441,48.36887916,116.6,116.56,0.06475512]
[1744355291635,0.06185147,116.58,116.56,0.06475512]
[1744355293833,42.6043,116.57,116.56,0.06475512]
[1744355294034,42.6043,116.57,116.52,14.34887916]
[1744355294233,42.6043,116.57,116.53,8.42253264]
[1744355294438,42.6043,116.57,116.54,8.42253264]
[1744355294639,42.6043,116.57,116.53,8.5866]
[1744355294841,42.6043,116.57,116.52,14.34887916]
[1744355295042,0.06569339,116.56,116.53,8.48028837]
[1744355295238,0.06569339,116.56,116.54,17.0091888]
[1744355295439,0.06569339,116.56,116.54,8.5862]
[1744355297040,8.5865,116.54,116.53,0.05729957]
[1744355297245,42.6065,116.54,116.53,0.05729957]
[1744355297545,48.36887916,116.54,116.48,46.54138719]
[1744355297749,8.5886,116.52,116.49,8.42922435]
[1744355298046,34.02,116.51,116.48,46.54138719]
[1744355298441,14.34887916,116.5,116.48,46.54138719]
[1744355298641,14.34887916,116.5,116.48,46.58479568]
[1744355299248,34.08048552,116.51,116.48,46.58479568]
[1744355299747,42.66958552,116.51,116.48,55.17529568]
[1744355301149,8.5896,116.5,116.48,0.04340849]
[1744355301447,57.08679968,116.51,116.48,0.04340849]
[1744355301949,23.06679968,116.51,116.48,0.04340849]
[1744355302147,23.06679968,116.51,116.48,8.63430849]
[1744355302148,8.64948552,116.51,116.48,8.63430849]
[1744355302553,0.06048552,116.51,116.48,0.04340849]
[1744355302851,8.5895,116.5,116.48,0.04340849]
[1744355306855,42.66938552,116.51,116.48,0.04340849]
[1744355308860,42.66938552,116.51,116.48,8.63430849]
[1744355309247,8.5895,116.5,116.48,0.04340849]
[1744355310055,8.5902,116.49,116.48,0.04340849]
[1744355310252,57.08679968,116.51,116.44,1.49401108]
[1744355310459,23.00631416,116.49,116.42,34.02]
[1744355310758,2.3144,116.48,116.43,8.40862047]
[1744355310948,34.04,116.47,116.42,1.49439601]
[1744355311456,0.05690238,116.46,116.42,1.49439601]
[1744355312152,8.5936,116.45,116.42,8.595]
[1744355312954,8.64960238,116.46,116.43,8.5946]
[1744355313349,0.05690238,116.46,116.41,24.50096691]
[1744355313649,8.5936,116.45,116.41,24.50096691]
[1744355313851,24.9236,116.45,116.41,24.50096691]
[1744355314154,24.9236,116.45,116.42,8.5952]
[1744355317755,8.594,116.44,116.41,10.09045275]
[1744355317958,16.33,116.45,116.41,1.49465275]
[1744355318162,8.65977226,116.44,116.39,123.55991416]
[1744355318462,0.06587226,116.44,116.4,1.49481326]
[1744355319162,0.06587226,116.44,116.41,8.5957]
[1744355319349,0.06587226,116.44,116.39,123.55991416]
[1744355319350,34.00587226,116.44,116.39,48.43446152]
[1744355319756,8.5955,116.42,116.39,57.03166152]
[1744355319960,48.33446152,116.44,116.38,1.49487747]
[1744355320153,8.65113696,116.42,116.39,8.5975]
[1744355320757,0.05543696,116.42,116.41,8.5961]
[1744355322861,0.05543696,116.42,116.39,14.39446152]
[1744355324065,0.05543696,116.42,116.4,8.5969]
[1744355324265,0.05543696,116.42,116.39,14.39446152]
[1744355324871,0.05543696,116.42,116.41,8.5961]
[1744355325169,0.05543696,116.42,116.39,14.39446152]
[1744355326268,0.05543696,116.42,116.41,8.5961]
[1744355326461,0.05543696,116.42,116.41,22.99056152]
[1744355327960,0.05543696,116.42,116.41,14.39446152]
[1744355328161,0.05543696,116.42,116.4,8.5966]
[1744355328563,0.05543696,116.42,116.39,48.35446152]
[1744355329265,0.05543696,116.42,116.41,8.5961]
[1744355330762,0.05543696,116.42,116.41,22.99056152]
[1744355332869,0.05543696,116.42,116.39,14.39446152]
[1744355333370,0.05543696,116.42,116.41,8.5961]
[1744355335173,0.05543696,116.42,116.4,8.5964]
[1744355335671,8.65123696,116.42,116.39,8.5975]
[1744355337074,8.5969,116.4,116.37,8.5987]
[1744355337276,2.3107,116.42,116.35,94.89584871]
[1744355337570,0.06577732,116.4,116.36,9.88872983]
[1744355337774,0.06577732,116.4,116.36,1.49529498]
[1744355338071,0.06577732,116.4,116.38,8.5979]
[1744355338271,0.06577732,116.4,116.36,1.49529498]
[1744355338472,0.06577732,116.4,116.39,22.99206152]
[1744355340076,0.06577732,116.4,116.39,31.39731081]
[1744355340568,15.39,116.44,116.39,37.19417233]
[1744355340774,15.39,116.44,116.42,14.39446152]
[1744355340967,15.39,116.44,116.43,8.5946]
[1744355341275,15.39,116.44,116.43,17.01344175]
[1744355342677,0.0001,116.44,116.43,17.01344175]
[1744355342878,17.66972318,116.45,116.44,8.5939]
[1744355343078,17.66972318,116.45,116.44,31.40720327]
[1744355344078,2.2942,116.49,116.47,8.5912]
[1744355345474,0.05879304,116.49,116.47,8.64917147]
[1744355345668,0.05879304,116.49,116.48,8.591]
[1744355346069,0.05879304,116.49,116.48,17.01979155]
[1744355346272,0.05879304,116.49,116.48,8.591]
[1744355346677,0.05879304,116.49,116.48,17.01864276]
[1744355347373,0.05879304,116.49,116.48,31.41310428]
[1744355347567,10.8754,116.53,116.5,8.5894]
[1744355347776,38.0095,116.54,116.5,14.39446152]
[1744355347980,38.0095,116.54,116.51,8.5883]
[1744355348280,38.0095,116.54,116.5,14.39446152]
[1744355348480,46.5964,116.54,116.5,22.98346152]
[1744355348779,0.06011349,116.53,116.51,0.06243895]
[1744355349075,8.588,116.52,116.51,0.06243895]
[1744355349378,16.74717501,116.53,116.47,8.5914]
[1744355349578,8.5892,116.51,116.48,8.41982453]
[1744355349768,8.5892,116.51,116.47,8.5914]
[1744355350482,0.06592932,116.5,116.48,0.06007236]
[1744355352284,8.65542932,116.5,116.48,0.06007236]
[1744355354381,0.06592932,116.5,116.48,0.06007236]
[1744355354984,8.65562932,116.5,116.48,0.06007236]
[1744355356289,8.5902,116.49,116.48,0.06007236]
[1744355356985,0.06592932,116.5,116.48,0.06007236]
[1744355357190,0.06592932,116.5,116.48,8.65067236]
[1744355357989,0.06592932,116.5,116.48,23.04513388]
[1744355358982,0.06592932,116.5,116.49,8.5902]
[1744355359783,33.48,116.54,116.52,8.5878]
[1744355359994,19.23,116.55,116.51,14.39446152]
[1744355360289,8.5856,116.56,116.51,14.39446152]
[1744355360489,8.5856,116.56,116.52,8.5876]
[1744355360690,8.5856,116.56,116.51,14.39446152]
[1744355360892,0.06580535,116.55,116.52,0.06160126]
[1744355361088,0.06580535,116.55,116.52,8.64920126]
[1744355361289,0.06580535,116.55,116.52,0.06160126]
[1744355361689,0.06580535,116.55,116.53,8.5872]
[1744355363789,0.06580535,116.55,116.52,0.06160126]
[1744355364293,8.5869,116.54,116.52,0.06160126]
[1744355364693,0.06580535,116.55,116.52,0.06160126]
[1744355364991,8.65220535,116.55,116.52,8.64940126]
[1744355366596,8.65220535,116.55,116.53,8.5872]
[1744355366597,0.06580535,116.55,116.53,8.5872]
[1744355366788,0.06580535,116.55,116.52,0.06160126]
[1744355367294,0.06580535,116.55,116.53,8.5869]
[1744355367596,8.65200535,116.55,116.52,0.06160126]
[1744355367895,8.65200535,116.55,116.52,8.64930126]
[1744355371405,8.65200535,116.55,116.52,23.04376278]
[1744355374002,0.06580535,116.55,116.52,23.04376278]
[1744355374206,8.5866,116.54,116.52,23.04376278]
[1744355374509,0.06580535,116.55,116.52,0.06160126]
[1744355374709,8.5872,116.54,116.52,0.06160126]
[1744355375110,0.06580535,116.55,116.52,0.06160126]
[1744355375312,8.5871,116.54,116.52,9.25789938]
[1744355375507,9.26210347,116.55,116.52,9.25789938]
[1744355375905,8.5873,116.53,116.52,9.25789938]
[1744355376610,8.5873,116.53,116.52,0.06160126]
[1744355376917,9.19629812,116.53,116.47,9.19629812]
[1744355377099,9.19629812,116.51,116.47,17.78769812]
[1744355377405,8.5901,116.5,116.47,17.78769812]
[1744355377605,42.37629812,116.51,116.47,17.78769812]
[1744355377802,8.64742893,116.5,116.48,0.06495117]
[1744355379515,0.05752893,116.5,116.48,8.65575117]
[1744355380008,8.64732893,116.5,116.48,0.06495117]
[1744355381211,8.5902,116.49,116.48,0.06495117]
[1744355383709,0.05752893,116.5,116.48,0.06495117]
[1744355383916,0.05752893,116.5,116.48,14.44439942]
[1744355384915,8.64722893,116.5,116.48,23.03529942]
[1744355385107,8.64722893,116.5,116.48,14.44439942]
[1744355385108,0.05752893,116.5,116.48,14.44439942]
[1744355385510,0.05752893,116.5,116.49,8.42382201]
[1744355386316,0.05752893,116.5,116.49,17.01402201]
[1744355387421,0.05752893,116.5,116.49,17.02277662]
[1744355391027,0.05752893,116.5,116.49,17.02780658]
[1744355396429,0.05752893,116.5,116.49,17.02954741]
[1744355398629,0.05752893,116.5,116.49,50.22954741]
[1744355400931,0.05752893,116.5,116.49,17.02954741]
[1744355401328,0.05752893,116.5,116.49,17.63983391]
[1744355402032,0.05752893,116.5,116.49,26.23003391]
[1744355402832,9.25801543,116.5,116.48,0.06495117]
[1744355403132,9.2004865,116.49,116.48,0.06495117]
[1744355403334,8.5911,116.48,116.45,64.33467369]
[1744355403637,11.4254865,116.5,116.46,17.64528641]
[1744355403929,8.5907,116.49,116.47,8.44479991]
[1744355404122,2.225,116.5,116.46,9.2004865]
[1744355404322,8.5915,116.48,116.47,0.06123148]
[1744355406231,9.25759402,116.49,116.47,0.06123148]
[1744355406232,0.05710752,116.49,116.47,0.06123148]
[1744355406431,0.05710752,116.49,116.48,8.44136831]
[1744355406636,0.05710752,116.49,116.48,9.2004865]
[1744355406825,8.64730752,116.49,116.47,17.85311798]
[1744355407028,0.05710752,116.49,116.47,0.06123148]
[1744355407434,8.591,116.48,116.47,0.06123148]
[1744355409133,17.7914865,116.48,116.47,0.06123148]
[1744355409535,9.2004865,116.48,116.44,19.2882221]
[1744355409837,42.0004865,116.48,116.44,19.2882221]
[1744355410338,8.5918,116.47,116.44,19.2882221]
[1744355410634,8.65267108,116.47,116.45,9.2004865]
[1744355410832,0.06087108,116.47,116.46,9.2004865]
[1744355411032,0.06087108,116.47,116.46,17.63719463]
[1744355411437,0.06087108,116.47,116.46,9.2004865]
[1744355411634,8.65257108,116.47,116.46,9.2004865]
[1744355412037,8.65257108,116.47,116.45,17.7934865]
[1744355412238,0.06087108,116.47,116.45,17.7934865]
[1744355413337,8.65257108,116.47,116.45,17.7934865]
[1744355413538,8.65257108,116.47,116.46,9.2004865]
[1744355414835,0.06087108,116.47,116.46,9.2004865]
[1744355416036,0.06087108,116.47,116.46,26.23004162]
[1744355418741,0.06087108,116.47,116.46,17.02955512]
[1744355418936,0.06087108,116.47,116.46,26.23004162]
[1744355419735,0.06087108,116.47,116.46,26.23683814]
[1744355422733,1.98,116.5,116.49,8.5902]
[1744355422928,1.98,116.5,116.49,26.23463814]
[1744355424045,0.05878145,116.51,116.5,8.5895]
[1744355424346,0.05878145,116.51,116.5,26.23393814]
[1744355427144,0.05878145,116.51,116.5,17.64443814]
[1744355428545,0.05878145,116.51,116.5,26.23393814]
[1744355433957,0.05878145,116.51,116.5,26.22554812]
[1744355436459,0.05878145,116.51,116.5,17.63604812]
[1744355436960,0.05878145,116.51,116.5,26.22554812]
[1744355438754,0.05878145,116.51,116.5,17.63604812]
[1744355439462,0.05878145,116.51,116.5,17.63395966]
[1744355440360,0.05878145,116.51,116.5,26.22345966]
[1744355444863,0.05878145,116.51,116.5,26.22195408]
[1744355445375,14.43,116.53,116.5,17.63245408]
[1744355445573,14.43,116.53,116.52,9.2004865]
[1744355445768,14.43,116.53,116.52,17.63245408]
[1744355446163,14.43,116.53,116.52,26.22045408]
[1744355449678,14.43,116.53,116.52,9.2004865]
[1744355450875,14.43,116.53,116.52,17.7884865]
[1744355453382,14.43,116.53,116.52,9.2004865]
[1744355454679,23.0173,116.53,116.51,9.263915]
[1744355455380,8.588,116.52,116.51,0.0634285]
[1744355456573,14.43,116.53,116.51,9.263915]
[1744355456778,14.43,116.53,116.52,9.2004865]
[1744355457179,14.43,116.53,116.51,17.852315]
[1744355457680,23.0173,116.53,116.51,17.852315]
[1744355457885,23.0173,116.53,116.51,0.0634285]
[1744355458085,23.6304865,116.53,116.51,0.0634285]
[1744355458286,56.2504865,116.53,116.51,0.0634285]
[1744355458674,47.05,116.53,116.48,17.7910865]
[1744355458986,11.3045865,116.52,116.49,8.43530085]
[1744355459288,9.2004865,116.51,116.47,17.7917865]
[1744355459480,9.2004865,116.51,116.48,8.43563554]
[1744355459680,8.5896,116.5,116.48,9.2004865]
[1744355459882,8.5896,116.5,116.48,9.25671053]
[1744355460082,9.26097009,116.51,116.48,0.05622403]
[1744355460379,8.5902,116.49,116.48,0.05622403]
[1744355460591,8.5902,116.49,116.48,8.49781795]
[1744355461585,8.5902,116.49,116.48,0.05622403]
[1744355462986,41.2098,116.5,116.48,0.05622403]
[1744355463186,2.23628359,116.51,116.49,9.2004865]
[1744355463588,10.82538359,116.51,116.48,8.64682403]
[1744355463787,10.82538359,116.51,116.48,17.84731053]
[1744355464187,10.82538359,116.51,116.49,17.7904865]
[1744355464382,2.23628359,116.51,116.49,17.7904865]
[1744355465094,10.82508359,116.51,116.49,17.7904865]
[1744355465695,10.82508359,116.51,116.49,9.2004865]
[1744355466595,10.82508359,116.51,116.5,8.44737532]
[1744355466897,10.82508359,116.51,116.49,9.2004865]
[1744355467297,10.82508359,116.51,116.49,17.7906865]
[1744355467496,2.23628359,116.51,116.5,9.2004865]
[1744355467696,0.06048359,116.51,116.5,17.64968855]
[1744355467897,0.06048359,116.51,116.5,26.23918855]
[1744355468694,14.43,116.53,116.52,8.588]
[1744355468892,14.43,116.53,116.52,26.23768855]
[1744355471599,14.43,116.53,116.52,26.23522881]
[1744355473296,14.43,116.53,116.52,17.64722881]
[1744355474099,14.43,116.53,116.52,26.23522881]
[1744355474301,14.43,116.53,116.52,17.64722881]
[1744355475006,14.43,116.53,116.52,8.44674231]
[1744355475207,14.43,116.53,116.52,8.4462699]
[1744355476499,14.43,116.53,116.52,17.0342699]
[1744355477903,14.43,116.53,116.51,17.85177491]
[1744355478507,14.43,116.53,116.52,26.23471767]
[1744355478701,41.8004865,116.59,116.52,17.64671767]
[1744355479007,41.8004865,116.59,116.55,17.7861865]
[1744355479208,8.5839,116.58,116.55,17.7861865]
[1744355479604,8.5826,116.6,116.57,17.7847865]
[1744355479798,8.5826,116.6,116.58,17.64268982]
[1744355480005,8.64556071,116.6,116.58,9.2004865]
[1744355480206,8.64556071,116.6,116.58,17.84010193]
[1744355480409,8.64556071,116.6,116.58,9.25660193]
[1744355483009,8.5828,116.59,116.58,0.05611543]
[1744355483201,41.1828,116.59,116.58,0.05611543]
[1744355483398,41.8004865,116.59,116.56,17.7851865]
[1744355483600,8.5836,116.58,116.56,9.2004865]
[1744355484405,8.5836,116.58,116.56,9.26583356]
[1744355484708,41.1832,116.59,116.56,9.26583356]
[1744355484899,41.1832,116.59,116.56,17.85053356]
[1744355485100,41.1832,116.59,116.57,9.2004865]
[1744355485401,8.5836,116.58,116.57,9.2004865]
[1744355485597,32.6,116.59,116.57,17.7847865]
[1744355485814,32.6,116.59,116.58,9.2004865]
[1744355487009,8.64536071,116.6,116.58,9.2004865]
[1744355487306,8.5828,116.59,116.58,9.2004865]
[1744355487912,8.5828,116.59,116.57,8.5843]
[1744355488406,8.5828,116.59,116.57,17.7847865]
[1744355489314,0.06296071,116.6,116.59,8.5828]
[1744355489608,0.06296071,116.6,116.59,17.7832865]
[1744355493017,0.06296071,116.6,116.59,9.2004865]
[1744355493820,8.64506071,116.6,116.59,9.2004865]
[1744355494118,0.06296071,116.6,116.59,9.2004865]
[1744355494719,0.06296071,116.6,116.59,17.7832865]
[1744355498525,8.64556071,116.6,116.58,0.05965618]
[1744355498718,17.84604721,116.6,116.58,0.05965618]
[1744355499119,8.64556071,116.6,116.58,9.26014268]
[1744355500325,8.64556071,116.6,116.58,17.84374268]
[1744355501224,8.64556071,116.6,116.58,9.26014268]
[1744355501927,8.64556071,116.6,116.58,17.84354268]
[1744355502328,8.64556071,116.6,116.58,9.26014268]
[1744355502927,8.5828,116.59,116.58,9.26014268]
[1744355503128,0.06296071,116.6,116.58,9.26014268]
[1744355503529,8.64546071,116.6,116.58,9.26014268]
[1744355504131,0.06296071,116.6,116.59,9.2004865]
[1744355510936,8.64506071,116.6,116.59,9.2004865]
[1744355511235,8.64506071,116.6,116.58,9.26014268]
[1744355512336,8.64506071,116.6,116.58,17.84364268]
[1744355515032,8.64506071,116.6,116.59,9.2004865]
[1744355515238,0.06296071,116.6,116.59,9.2004865]
[1744355516542,8.64506071,116.6,116.59,9.2004865]
[1744355517443,0.06296071,116.6,116.59,9.2004865]
[1744355518245,8.64506071,116.6,116.59,9.2004865]
[1744355518746,0.06296071,116.6,116.59,9.2004865]
[1744355519143,0.06296071,116.6,116.59,17.7832865]
[1744355519448,14.414,116.64,116.59,17.63255743]
[1744355519642,14.414,116.64,116.62,9.2004865]
[1744355519948,10.8335,116.64,116.62,9.2004865]
[1744355520148,10.8335,116.64,116.63,9.2004865]
[1744355520448,10.8335,116.64,116.62,9.2004865]
[1744355520746,10.8335,116.64,116.62,9.26525752]
[1744355521342,41.22117462,116.65,116.62,9.26525752]
[1744355521545,41.22117462,116.65,116.63,9.2004865]
[1744355522349,8.5792,116.64,116.62,17.84555752]
[1744355522549,8.5792,116.64,116.63,8.44097326]
[1744355526056,9.2004865,116.64,116.62,0.06477102]
[1744355526353,11.4140865,116.63,116.58,46.54138719]
[1744355526552,17.7832865,116.59,116.58,46.54138719]
[1744355526748,17.7832865,116.59,116.58,54.98958753]
[1744355527154,17.7832865,116.59,116.58,11.94305247]
[1744355527155,50.3432865,116.59,116.58,11.94305247]